bitfinex/quotes_BTCUSD_20250303
["timestamp","ask_amount","ask_price","bid_price","bid_amount"]
[1740975557398,0.0001703,92883.0,92882.0,4.308075]
[1740975557574,0.0001703,92883.0,92882.0,4.315075]
[1740975557791,0.0001703,92883.0,92882.0,4.322075]
[1740975557988,0.0001703,92883.0,92882.0,4.007469]
[1740975558322,0.0001703,92883.0,92882.0,3.117662]
[1740975558527,0.0001703,92883.0,92882.0,3.092565]
[1740975567871,0.0001703,92883.0,92882.0,2.926317]
[1740975568602,0.0001703,92883.0,92882.0,2.814129]
[1740975573805,0.0001703,92883.0,92882.0,2.91102682]
[1740975575252,0.0001703,92883.0,92882.0,2.89947982]
[1740975576375,0.0001703,92883.0,92882.0,2.802582]
[1740975578362,0.0003412,92906.0,92883.0,0.445344]
[1740975578566,0.04292155,92898.0,92883.0,5.28513202]
[1740975579161,0.04292155,92898.0,92883.0,5.35961202]
[1740975579697,0.04292155,92898.0,92883.0,5.36661202]
[1740975579845,0.04292155,92898.0,92883.0,5.37361202]
[1740975580050,0.04292155,92898.0,92883.0,4.56510702]
[1740975580269,0.04292155,92898.0,92883.0,4.52941402]
[1740975581216,0.04292155,92898.0,92883.0,4.420577]
[1740975581383,0.04292155,92898.0,92895.0,0.145325]
[1740975581577,0.04292155,92898.0,92895.0,0.917992]
[1740975581799,0.04292155,92898.0,92895.0,1.034592]
[1740975582000,0.04195076,92898.0,92895.0,1.034592]
[1740975582183,0.31852696,92905.0,92898.0,0.19376]
[1740975582184,0.04195076,92899.0,92898.0,0.19376]
[1740975582582,0.04235363,92899.0,92898.0,0.19376]
[1740975584142,0.04235363,92899.0,92898.0,0.20076]
[1740975584464,0.04235363,92899.0,92898.0,0.20376]
[1740975586560,0.00040287,92899.0,92898.0,0.20376]
[1740975586719,0.04235363,92899.0,92898.0,0.20376]
[1740975587347,0.04235363,92899.0,92898.0,0.22397035]
[1740975587956,0.04235363,92899.0,92898.0,2.11882635]
[1740975587957,0.00040287,92899.0,92898.0,2.11882635]
[1740975589002,0.00040287,92899.0,92898.0,0.52397035]
[1740975589379,0.00040287,92899.0,92898.0,3.04812535]
[1740975591444,0.00040287,92899.0,92898.0,3.15696237]
[1740975592127,0.00040287,92899.0,92898.0,3.14996237]
[1740975592336,0.00040287,92899.0,92898.0,3.14696237]
[1740975592665,0.00040287,92899.0,92898.0,3.16096237]
[1740975593003,0.00040287,92899.0,92898.0,3.15396237]
[1740975593207,0.00040287,92899.0,92898.0,3.16096237]
[1740975593522,0.00040287,92899.0,92898.0,3.16130297]
[1740975593845,0.00057317,92899.0,92898.0,3.15430297]
[1740975594038,0.00057317,92899.0,92898.0,3.16130297]
[1740975594360,0.00057317,92899.0,92898.0,3.15430297]
[1740975594783,0.00057317,92899.0,92898.0,3.16130297]
[1740975595108,0.00057317,92899.0,92898.0,3.15430297]
[1740975595279,0.00057317,92899.0,92898.0,3.22878297]
[1740975595443,0.00057317,92899.0,92898.0,3.23578297]
[1740975597266,0.00057317,92899.0,92898.0,3.28578232]
[1740975597510,0.00057317,92899.0,92898.0,3.27878232]
[1740975597755,1.7e-07,92899.0,92898.0,3.27878232]
[1740975597915,1.7e-07,92899.0,92898.0,0.76162732]
[1740975598125,1.7e-07,92899.0,92898.0,0.75462732]
[1740975598324,0.0003412,92906.0,92905.0,0.445309]
[1740975598528,0.0003412,92906.0,92905.0,5.17632935]
[1740975599633,0.0001706,92918.0,92905.0,5.13985737]
[1740975599878,0.0001706,92918.0,92915.0,0.445294]
[1740975600420,0.0001706,92918.0,92915.0,4.879185]
[1740975600625,0.0001706,92918.0,92915.0,4.404241]
[1740975601045,0.0001706,92918.0,92915.0,4.010374]
[1740975601244,0.0001706,92918.0,92915.0,3.44126499]
[1740975601450,0.0001706,92918.0,92915.0,2.90777899]
[1740975601739,0.0001706,92918.0,92915.0,2.91277899]
[1740975602142,0.0001706,92918.0,92915.0,1.64509799]
[1740975602341,0.0001706,92918.0,92915.0,0.79445499]
[1740975602546,0.0001706,92918.0,92915.0,0.80145499]
[1740975606699,0.0051603,92916.0,92915.0,0.80145499]
[1740975607309,0.0051603,92916.0,92915.0,0.91029201]
[1740975607508,2.1e-07,92919.0,92917.0,0.3]
[1740975607708,0.31852696,92930.0,92929.0,0.445272]
[1740975608004,0.0001704,92932.0,92929.0,0.445272]
[1740975608005,0.0001704,92932.0,92931.0,0.445269]
[1740975608229,0.0001704,92932.0,92931.0,1.898173]
[1740975608428,0.0001704,92932.0,92931.0,1.967201]
[1740975608930,0.0001704,92932.0,92931.0,1.665898]
[1740975609440,0.0001704,92932.0,92931.0,1.69310835]
[1740975609587,0.0001704,92932.0,92931.0,1.63381335]
[1740975609987,0.0001704,92932.0,92931.0,1.62005135]
[1740975610191,0.0001704,92932.0,92931.0,0.96584335]
[1740975610399,0.0001704,92932.0,92931.0,0.97084335]
[1740975610621,0.0001704,92932.0,92931.0,0.47747935]
[1740975611304,0.0001704,92932.0,92931.0,1.08414035]
[1740975611521,0.0001704,92932.0,92931.0,1.13770835]
[1740975611719,0.0001704,92932.0,92931.0,0.55191935]
[1740975615288,0.0001704,92932.0,92931.0,2.62230135]
[1740975615475,0.0001704,92932.0,92931.0,2.63690635]
[1740975615626,0.0001704,92932.0,92931.0,2.26096635]
[1740975616474,0.0001704,92932.0,92931.0,1.57509235]
[1740975616684,0.0001704,92932.0,92931.0,1.51585935]
[1740975623935,4e-07,92932.0,92931.0,1.51585935]
[1740975624112,4e-07,92932.0,92931.0,0.66075637]
[1740975624433,4e-07,92932.0,92931.0,0.73575637]
[1740975624859,4e-07,92932.0,92931.0,0.72875637]
[1740975625083,4e-07,92932.0,92931.0,0.73575637]
[1740975625482,4e-07,92932.0,92931.0,0.73075637]
[1740975626416,4e-07,92932.0,92931.0,0.82755144]
[1740975626969,4e-07,92932.0,92931.0,0.83455144]
[1740975628705,4e-07,92932.0,92931.0,0.75955144]
[1740975629973,4e-07,92932.0,92931.0,0.66275637]
[1740975635718,0.00499,92943.0,92942.0,0.145251]
[1740975635942,0.00499,92943.0,92942.0,3.424876]
[1740975636165,0.00499,92943.0,92942.0,4.263244]
[1740975636382,0.00499,92943.0,92942.0,4.285142]
[1740975636606,0.00499,92943.0,92942.0,4.253142]
[1740975636818,0.00499,92943.0,92942.0,4.098817]
[1740975637015,0.00499,92943.0,92942.0,4.110817]
[1740975637183,0.00499,92943.0,92942.0,4.13102735]
[1740975637350,0.00499,92943.0,92942.0,4.00180335]
[1740975637562,0.00499,92943.0,92942.0,3.81480335]
[1740975637763,0.00499,92943.0,92942.0,3.34046135]
[1740975638184,0.00499,92943.0,92942.0,3.34746135]
[1740975638676,0.00499,92943.0,92942.0,3.34046135]
[1740975639510,0.00499,92943.0,92942.0,3.33346135]
[1740975639908,0.00499,92943.0,92942.0,3.34746135]
[1740975640113,0.00499,92943.0,92942.0,3.34046135]
[1740975640313,0.00499,92943.0,92942.0,0.46546135]
[1740975640518,0.00499,92943.0,92942.0,3.70399135]
[1740975640746,0.00499,92943.0,92942.0,3.88590035]
[1740975641090,9.051e-05,92948.0,92947.0,0.445244]
[1740975641466,9.051e-05,92948.0,92947.0,5.176195]
[1740975641874,9.051e-05,92948.0,92947.0,5.28503202]
[1740975642440,9.9348905,92950.0,92949.0,0.44524]
[1740975642722,9.93501135,92950.0,92949.0,5.28502802]
[1740975643213,8.97802646,92950.0,92949.0,5.42257661]
[1740975643402,8.97802646,92950.0,92949.0,5.44433525]
[1740975643604,8.94567641,92950.0,92949.0,5.44433525]
[1740975643973,8.94567641,92950.0,92949.0,3.47019636]
[1740975644384,8.94567641,92950.0,92949.0,3.46319636]
[1740975644594,8.94567641,92950.0,92949.0,3.47719636]
[1740975644814,8.94567641,92950.0,92949.0,3.39769636]
[1740975645018,8.94567641,92950.0,92949.0,3.33369701]
[1740975645249,8.93378231,92950.0,92949.0,3.3987456]
[1740975645421,8.93378231,92950.0,92949.0,3.4057456]
[1740975646103,8.93378231,92950.0,92949.0,3.39769636]
[1740975646418,8.93378231,92950.0,92949.0,3.3987456]
[1740975646604,8.93378231,92950.0,92949.0,3.3917456]
[1740975646802,8.93378231,92950.0,92949.0,3.3987456]
[1740975647212,8.93378231,92950.0,92949.0,3.4057456]
[1740975648444,8.93378231,92950.0,92949.0,3.3987456]
[1740975649205,8.92141927,92950.0,92949.0,3.3987456]
[1740975649435,8.92141927,92950.0,92949.0,3.3917456]
[1740975649854,8.92141927,92950.0,92949.0,3.39769636]
[1740975650012,8.92141927,92950.0,92949.0,3.39069636]
[1740975650215,8.92141927,92950.0,92949.0,3.38369636]
[1740975650412,8.92141927,92950.0,92949.0,3.39069636]
[1740975650643,8.92141927,92950.0,92949.0,3.39769636]
[1740975651171,8.92141927,92950.0,92949.0,0.66004536]
[1740975651403,8.92141927,92950.0,92949.0,5.34423536]
[1740975651545,8.92141927,92950.0,92949.0,5.39099636]
[1740975652730,8.92141927,92950.0,92949.0,5.31923837]
[1740975653166,8.92141927,92950.0,92949.0,5.28480135]
[1740975653341,8.92141927,92950.0,92949.0,4.73057735]
[1740975653538,8.92141927,92950.0,92949.0,4.22530035]
[1740975653877,8.92141927,92950.0,92949.0,4.21830035]
[1740975654023,8.92141927,92950.0,92949.0,3.17420335]
[1740975654230,8.92141927,92950.0,92949.0,3.18154375]
[1740975654405,8.92141927,92950.0,92949.0,3.48154375]
[1740975654610,8.92158947,92950.0,92949.0,1.18262775]
[1740975654814,8.92158947,92950.0,92949.0,0.88082175]
[1740975655820,8.92158947,92950.0,92949.0,0.87382175]
[1740975656048,8.92158947,92950.0,92949.0,0.88082175]
[1740975656552,8.92158947,92950.0,92949.0,0.88782175]
[1740975656936,8.92158947,92950.0,92949.0,0.87382175]
[1740975657163,8.92158947,92950.0,92949.0,0.88082175]
[1740975657373,8.92158947,92950.0,92949.0,0.88782175]
[1740975657573,9.00278947,92950.0,92949.0,0.88782175]
[1740975659099,9.00278947,92950.0,92949.0,0.88082175]
[1740975659295,9.00278947,92950.0,92949.0,0.88782175]
[1740975659456,8.92158947,92950.0,92949.0,0.88782175]
[1740975659658,8.92158947,92950.0,92949.0,0.88082175]
[1740975659899,8.92158947,92950.0,92949.0,0.89482175]
[1740975660259,8.92158947,92950.0,92949.0,0.88782175]
[1740975660483,8.92158947,92950.0,92949.0,0.99665877]
[1740975660802,8.86312863,92950.0,92949.0,0.99665877]
[1740975661004,8.5100208,92950.0,92949.0,0.99665877]
[1740975661303,8.5100208,92950.0,92949.0,1.00365877]
[1740975661601,8.4529608,92950.0,92949.0,1.00365877]
[1740975661979,8.4529608,92950.0,92949.0,0.98965877]
[1740975662384,8.4529608,92950.0,92949.0,0.99665877]
[1740975662579,8.4411259,92950.0,92949.0,0.99665877]
[1740975662777,8.3232159,92950.0,92949.0,1.04665812]
[1740975663182,7.85650396,92950.0,92949.0,1.05470736]
[1740975663363,7.82123006,92950.0,92949.0,1.06170736]
[1740975663570,7.79759775,92950.0,92949.0,1.06170736]
[1740975663695,7.79759775,92950.0,92949.0,1.04070736]
[1740975664140,7.79759775,92950.0,92949.0,1.04770736]
[1740975664338,7.79436314,92950.0,92949.0,1.04770736]
[1740975664540,7.79436314,92950.0,92949.0,1.04070736]
[1740975664854,7.25921967,92950.0,92949.0,1.04070736]
[1740975665158,6.28094923,92950.0,92949.0,1.12960736]
[1740975665308,5.5963906,92950.0,92949.0,1.17140736]
[1740975665513,5.32338175,92950.0,92949.0,1.17140736]
[1740975665718,4.84085525,92950.0,92949.0,1.21194957]
[1740975665923,4.8052383,92950.0,92949.0,1.21894957]
[1740975666129,4.4241283,92950.0,92949.0,1.18540736]
[1740975666532,4.33789031,92950.0,92949.0,1.26152736]
[1740975666726,4.33789031,92950.0,92949.0,0.58782175]
[1740975666970,4.33789031,92950.0,92949.0,0.42665175]
[1740975667722,4.33789031,92950.0,92949.0,0.71965175]
[1740975667995,4.33789031,92950.0,92949.0,0.41265175]
[1740975668306,4.33789031,92950.0,92949.0,0.41965175]
[1740975668649,4.33789031,92950.0,92949.0,0.71265175]
[1740975668854,4.33789031,92950.0,92949.0,0.71965175]
[1740975669507,4.33789031,92950.0,92949.0,0.72665175]
[1740975669736,4.33789031,92950.0,92949.0,0.71965175]
[1740975670114,4.33789031,92950.0,92949.0,0.72665175]
[1740975670409,4.33789031,92950.0,92949.0,1.73029275]
[1740975671170,4.33789031,92950.0,92949.0,1.83912977]
[1740975671581,4.33789031,92950.0,92949.0,1.73029275]
[1740975672616,4.33789031,92950.0,92949.0,1.51552775]
[1740975672823,4.33789031,92950.0,92949.0,1.62436477]
[1740975673955,4.33789031,92950.0,92949.0,1.61736477]
[1740975674353,4.33789031,92950.0,92949.0,1.62436477]
[1740975674833,4.33789031,92950.0,92949.0,1.61736477]
[1740975675063,4.33789031,92950.0,92949.0,1.61036477]
[1740975675281,4.33789031,92950.0,92949.0,1.50852775]
[1740975675527,4.33789031,92950.0,92949.0,1.41870775]
[1740975675810,4.33789031,92950.0,92949.0,1.49466775]
[1740975676043,4.33789031,92950.0,92949.0,1.61050477]
[1740975676267,4.33789031,92950.0,92949.0,1.61750477]
[1740975676933,4.33789031,92950.0,92949.0,1.60942815]
[1740975677138,4.28937427,92950.0,92949.0,1.60942815]
[1740975677702,4.28937427,92950.0,92949.0,1.61642815]
[1740975679090,4.28937427,92950.0,92949.0,1.60942815]
[1740975679227,4.28937427,92950.0,92949.0,1.60242815]
[1740975679431,4.28937427,92950.0,92949.0,1.60942815]
[1740975679629,4.28937427,92950.0,92949.0,1.61642815]
[1740975680038,4.28937427,92950.0,92949.0,1.60942815]
[1740975680237,4.28937427,92950.0,92949.0,1.61642815]
[1740975682366,4.28937427,92950.0,92949.0,1.61598815]
[1740975682566,4.28937427,92950.0,92949.0,1.50715113]
[1740975682779,4.28937427,92950.0,92949.0,1.43163113]
[1740975682985,4.28937427,92950.0,92949.0,1.50715113]
[1740975683295,4.28937427,92950.0,92949.0,1.43163113]
[1740975683492,4.28937427,92950.0,92949.0,1.50011113]
[1740975683786,4.28937427,92950.0,92949.0,1.50711113]
[1740975684722,4.28937427,92950.0,92949.0,1.50011113]
[1740975685090,4.28937427,92950.0,92949.0,1.50711113]
[1740975685536,4.28937427,92950.0,92949.0,1.6038696]
[1740975685743,4.28937427,92950.0,92949.0,1.5968696]
[1740975686159,4.28937427,92950.0,92949.0,1.5898696]
[1740975686307,4.28937427,92950.0,92949.0,1.5968696]
[1740975686503,4.28937427,92950.0,92949.0,1.6038696]
[1740975687139,4.28937427,92950.0,92949.0,1.5968696]
[1740975687343,4.28937427,92950.0,92949.0,1.6038696]
[1740975687551,4.28937427,92950.0,92949.0,1.50711113]
[1740975687790,4.28937427,92950.0,92949.0,1.49311113]
[1740975688271,4.28937427,92950.0,92949.0,1.49995113]
[1740975688514,4.28937427,92950.0,92949.0,1.49295113]
[1740975688987,4.28937427,92950.0,92949.0,1.49995113]
[1740975689343,4.28937427,92950.0,92949.0,1.50695113]
[1740975689545,4.28937427,92950.0,92949.0,1.49995113]
[1740975689955,4.28937427,92950.0,92949.0,1.50695113]
[1740975690357,4.28937427,92950.0,92949.0,1.49995113]
[1740975690822,4.28937427,92950.0,92949.0,1.50695113]
[1740975691825,4.28937427,92950.0,92949.0,1.50489291]
[1740975692379,4.28937427,92950.0,92949.0,0.66081293]
[1740975692706,4.28937427,92950.0,92949.0,5.42536393]
[1740975692904,4.28937427,92950.0,92949.0,5.45897399]
[1740975693113,4.28937427,92950.0,92949.0,5.47297399]
[1740975693473,4.28937427,92950.0,92949.0,5.46597399]
[1740975693673,3.94861773,92950.0,92949.0,5.48236328]
[1740975693931,3.94861773,92950.0,92949.0,5.48936328]
[1740975694108,3.94861773,92950.0,92949.0,5.49741252]
[1740975694310,3.91627119,92950.0,92949.0,5.44741317]
[1740975694510,3.91627119,92950.0,92949.0,5.38476393]
[1740975694731,3.91627119,92950.0,92949.0,5.39281317]
[1740975694933,3.91627119,92950.0,92949.0,5.38581317]
[1740975695310,3.91627119,92950.0,92949.0,5.38368808]
[1740975695560,3.91627119,92950.0,92949.0,5.38473732]
[1740975695866,3.91627119,92950.0,92949.0,5.39873732]
[1740975696263,3.88393078,92950.0,92949.0,5.44873667]
[1740975696494,3.88393078,92950.0,92949.0,5.44173667]
[1740975696668,3.82407079,92950.0,92949.0,5.44873667]
[1740975696872,3.79173038,92950.0,92949.0,5.44873667]
[1740975697382,3.39156297,92950.0,92949.0,5.44873667]
[1740975697778,2.95324224,92950.0,92949.0,5.47018482]
[1740975697980,2.66259624,92950.0,92949.0,5.47018482]
[1740975698339,2.63025583,92950.0,92949.0,5.47018482]
[1740975698554,2.63025583,92950.0,92949.0,5.46318482]
[1740975698753,2.59785909,92950.0,92949.0,5.46318482]
[1740975698953,2.59785909,92950.0,92949.0,5.47018482]
[1740975699487,2.54119868,92950.0,92949.0,5.46318482]
[1740975699680,2.53839868,92950.0,92949.0,5.37718682]
[1740975699983,2.50605827,92950.0,92949.0,5.17526282]
[1740975700142,2.50549828,92950.0,92949.0,5.16826282]
[1740975700484,2.47315787,92950.0,92949.0,5.17526282]
[1740975700645,2.47315787,92950.0,92949.0,4.93102282]
[1740975700849,2.38239747,92950.0,92949.0,4.90908182]
[1740975701091,2.38239747,92950.0,92949.0,4.90208182]
[1740975701292,2.33685006,92950.0,92949.0,4.99882924]
[1740975701700,2.33685006,92950.0,92949.0,4.99182924]
[1740975701899,2.30450965,92950.0,92949.0,4.99882924]
[1740975702095,2.30450965,92950.0,92949.0,4.62268624]
[1740975702419,2.21465925,92950.0,92949.0,4.69788624]
[1740975702801,2.18231884,92950.0,92949.0,4.69788624]
[1740975702999,2.12344884,92950.0,92949.0,4.63346982]
[1740975703203,2.09410414,92950.0,92949.0,4.63346982]
[1740975703402,2.06176468,92950.0,92949.0,4.63346982]
[1740975704013,2.02942522,92950.0,92949.0,3.75253282]
[1740975704349,2.02187449,92950.0,92949.0,3.75253282]
[1740975704579,1.98953503,92950.0,92949.0,3.75253282]
[1740975705047,1.95719557,92950.0,92949.0,3.75253282]
[1740975705550,1.92485611,92950.0,92949.0,3.67733282]
[1740975705714,1.92485611,92950.0,92949.0,3.75249282]
[1740975706840,1.92485611,92950.0,92949.0,3.67733282]
[1740975707021,1.92485611,92950.0,92949.0,3.75249282]
[1740975707897,1.40533353,92950.0,92949.0,3.75249282]
[1740975708046,1.24363164,92950.0,92949.0,3.75249282]
[1740975708246,1.18705218,92950.0,92949.0,3.75249282]
[1740975708475,1.15536218,92950.0,92949.0,3.75249282]
[1740975708693,1.14276218,92950.0,92949.0,3.75249282]
[1740975708884,1.11042272,92950.0,92949.0,3.61146351]
[1740975709085,1.11042272,92950.0,92949.0,3.75670351]
[1740975709494,1.07808326,92950.0,92949.0,3.75670351]
[1740975709891,1.0371538,92950.0,92949.0,3.75670351]
[1740975710442,1.00481434,92950.0,92949.0,3.74970351]
[1740975710655,1.00481434,92950.0,92949.0,3.75670351]
[1740975710961,1.00481434,92950.0,92949.0,3.70670416]
[1740975711150,0.88856435,92950.0,92949.0,3.74270351]
[1740975711356,0.88856435,92950.0,92949.0,3.74970351]
[1740975711516,0.88856435,92950.0,92949.0,3.75670351]
[1740975711729,0.85622648,92950.0,92949.0,3.75670351]
[1740975711942,0.85622648,92950.0,92949.0,3.74970351]
[1740975712251,0.0001704,92970.0,92968.0,0.445211]
[1740975712574,0.00503022,92969.0,92968.0,0.445211]
[1740975712922,0.00503022,92969.0,92968.0,5.157748]
[1740975713174,0.00503022,92969.0,92968.0,5.176162]
[1740975713400,0.00503022,92969.0,92968.0,5.28499902]
[1740975713533,0.00503022,92969.0,92968.0,5.30520937]
[1740975713735,0.00503022,92969.0,92968.0,5.30373659]
[1740975714492,0.00503022,92969.0,92968.0,5.31073659]
[1740975714639,0.00503022,92969.0,92968.0,5.31773659]
[1740975716456,0.0752,92987.0,92986.0,0.445183]
[1740975716659,0.0752,92987.0,92986.0,0.62950002]
[1740975717062,0.0752,92987.0,92986.0,5.36045102]
[1740975717261,0.0752,92987.0,92986.0,0.62950002]
[1740975717485,0.0802,92993.0,92992.0,0.145173]
[1740975717694,0.0802,92993.0,92992.0,4.37069169]
[1740975717894,0.0802,92993.0,92992.0,4.26817369]
[1740975718115,0.0802,92993.0,92992.0,4.17127269]
[1740975718753,0.00539227,92995.0,92992.0,4.17127269]
[1740975718954,0.00539227,92995.0,92994.0,0.44517]
[1740975719147,0.00539227,92995.0,92994.0,4.461235]
[1740975719343,0.00539227,92995.0,92994.0,4.432356]
[1740975720122,0.00539227,92995.0,92994.0,2.043325]
[1740975720322,0.00539227,92995.0,92994.0,1.85379435]
[1740975720871,0.00539227,92995.0,92994.0,1.76803735]
[1740975721080,0.08579227,92995.0,92994.0,0.68028435]
[1740975721294,0.08579227,92995.0,92994.0,0.61188435]
[1740975721656,0.08579227,92995.0,92994.0,0.60488435]
[1740975722062,0.08579227,92995.0,92994.0,0.59788435]
[1740975722255,0.08579227,92995.0,92994.0,0.60488435]
[1740975723138,0.08579227,92995.0,92994.0,0.61188435]
[1740975723594,0.08579227,92995.0,92994.0,0.60488435]
[1740975723853,0.08579227,92995.0,92994.0,0.59788435]
[1740975724058,0.08579227,92995.0,92994.0,0.60488435]
[1740975724280,0.08579227,92995.0,92994.0,0.61188435]
[1740975724458,0.08579227,92995.0,92994.0,0.60488435]
[1740975724782,0.08596247,92995.0,92994.0,0.60488435]
[1740975725355,0.08596247,92995.0,92994.0,0.61188435]
[1740975725556,0.08596247,92995.0,92994.0,0.60488435]
[1740975725992,0.00556247,92995.0,92994.0,0.60488435]
[1740975726416,0.00556247,92995.0,92994.0,0.59788435]
[1740975726847,0.00556247,92995.0,92994.0,0.60488435]
[1740975727646,0.00556247,92995.0,92994.0,0.61188435]
[1740975728076,0.00556247,92995.0,92994.0,0.47238035]
[1740975728622,0.00556247,92995.0,92994.0,2.23994735]
[1740975728792,0.00556247,92995.0,92994.0,0.90749935]
[1740975728976,0.08286247,92995.0,92994.0,0.80392835]
[1740975729383,0.08286247,92995.0,92994.0,0.72836835]
[1740975729764,0.08286247,92995.0,92994.0,0.71034035]
[1740975730890,0.08286247,92995.0,92994.0,0.59155235]
[1740975731093,0.08286247,92995.0,92994.0,0.59855235]
[1740975731555,0.08286247,92995.0,92994.0,0.47238035]
[1740975731781,0.08286247,92995.0,92994.0,0.46538035]
[1740975732008,0.08286247,92995.0,92994.0,0.47238035]
[1740975732150,0.08286247,92995.0,92994.0,0.47938035]
[1740975732593,0.08286247,92995.0,92994.0,0.46538035]
[1740975732764,0.08286247,92995.0,92994.0,0.47238035]
[1740975733235,0.08286247,92995.0,92994.0,0.32721035]
[1740975733594,0.08286247,92995.0,92994.0,0.33421035]
[1740975734066,0.08286247,92995.0,92994.0,0.32021035]
[1740975734240,0.08286247,92995.0,92994.0,0.46538035]
[1740975734441,0.08286247,92995.0,92994.0,0.47238035]
[1740975734612,0.04286247,92995.0,92994.0,0.47938035]
[1740975735005,0.04286247,92995.0,92994.0,0.46538035]
[1740975735233,0.04286247,92995.0,92994.0,0.47938035]
[1740975735445,0.04286247,92995.0,92994.0,0.47238035]
[1740975735874,0.04286247,92995.0,92994.0,0.47938035]
[1740975736845,0.04303267,92995.0,92994.0,0.47938035]
[1740975737046,0.04303267,92995.0,92994.0,0.46538035]
[1740975737544,0.04303267,92995.0,92994.0,1.53469735]
[1740975737757,0.04303267,92995.0,92994.0,1.36886935]
[1740975737910,0.0001702,92995.0,92994.0,1.36886935]
[1740975738105,0.0001702,92995.0,92994.0,1.36186935]
[1740975738429,0.0001702,92995.0,92994.0,1.36886935]
[1740975738611,0.0001702,92995.0,92994.0,0.47238035]
[1740975738815,0.0001702,92995.0,92994.0,0.46538035]
[1740975738993,0.0001702,92995.0,92994.0,0.47238035]
[1740975739212,0.0001702,92995.0,92994.0,1.36342335]
[1740975739410,0.0001702,92995.0,92994.0,1.45785135]
[1740975740150,0.0001702,92995.0,92994.0,1.46485135]
[1740975740354,0.0001702,92995.0,92994.0,1.45785135]
[1740975740551,0.0001702,92995.0,92994.0,1.45085135]
[1740975740870,0.0001702,92995.0,92994.0,1.46485135]
[1740975741168,0.0001702,92995.0,92994.0,1.45085135]
[1740975741334,0.0001702,92995.0,92994.0,1.46485135]
[1740975741735,0.0001702,92995.0,92994.0,1.45785135]
[1740975741938,0.0001702,92995.0,92994.0,1.45085135]
[1740975742161,0.0001702,92995.0,92994.0,0.60534735]
[1740975742475,0.0001702,92995.0,92994.0,0.60131335]
[1740975743664,0.0001702,92995.0,92994.0,0.58731335]
[1740975743872,0.0001702,92995.0,92994.0,0.60131335]
[1740975744202,0.0001702,92995.0,92994.0,0.59431335]
[1740975744414,0.0001702,92995.0,92994.0,0.58731335]
[1740975744551,0.0001702,92995.0,92994.0,0.59431335]
[1740975744886,0.0001702,92995.0,92994.0,0.60131335]
[1740975745889,0.0780702,92995.0,92994.0,0.03421035]
[1740975746091,0.12002096,92995.0,92994.0,0.03421035]
[1740975746273,0.0001702,92995.0,92994.0,0.95507635]
[1740975746503,0.0001702,92995.0,92994.0,2.45399735]
[1740975746708,0.0001702,92995.0,92994.0,0.91526035]
[1740975747125,0.0001702,92995.0,92994.0,0.92926035]
[1740975747307,0.0001702,92995.0,92994.0,0.92930035]
[1740975747503,0.0001702,92995.0,92994.0,0.92230035]
[1740975747715,0.0780702,92995.0,92994.0,0.73661535]
[1740975747946,0.2684392,92995.0,92994.0,0.02721035]
[1740975748102,0.2684392,92995.0,92994.0,0.03421035]
[1740975748302,0.2684392,92995.0,92994.0,0.02721035]
[1740975748303,0.31038996,92995.0,92994.0,0.02721035]
[1740975748503,0.16522096,92995.0,92994.0,0.03421035]
[1740975748729,0.16522096,92995.0,92994.0,0.03455115]
[1740975748903,0.16522096,92995.0,92994.0,0.17972115]
[1740975749107,0.16522096,92995.0,92994.0,0.03455115]
[1740975749714,0.16622096,92995.0,92994.0,0.04155115]
[1740975749947,0.16622096,92995.0,92994.0,0.03455115]
[1740975750152,0.16522096,92995.0,92994.0,0.16572115]
[1740975750318,0.1232702,92995.0,92994.0,0.17272115]
[1740975750512,0.1242702,92995.0,92994.0,0.17972115]
[1740975750728,0.1242702,92995.0,92994.0,0.17272115]
[1740975751133,0.16622096,92995.0,92994.0,0.03455115]
[1740975751751,0.16622096,92995.0,92994.0,0.02755115]
[1740975752155,0.1232702,92995.0,92994.0,0.16572115]
[1740975752359,0.12002096,92995.0,92994.0,0.16572115]
[1740975752561,0.0780702,92995.0,92994.0,0.16572115]
[1740975752787,0.0001702,92995.0,92994.0,0.16572115]
[1740975753160,0.0001702,92995.0,92994.0,0.17272115]
[1740975753569,0.0001702,92995.0,92994.0,0.03455115]
[1740975753772,0.0011702,92995.0,92994.0,0.03455115]
[1740975754102,0.04312096,92995.0,92994.0,0.02755115]
[1740975754301,0.04412096,92995.0,92994.0,0.03455115]
[1740975754594,0.18928996,92995.0,92994.0,0.03455115]
[1740975754770,0.27038996,92995.0,92994.0,0.03455115]
[1740975755568,0.12522096,92995.0,92994.0,0.03455115]
[1740975755773,0.12710292,92995.0,92994.0,0.03455115]
[1740975755994,0.27227192,92995.0,92994.0,0.03455115]
[1740975756199,0.27038996,92995.0,92994.0,0.03455115]
[1740975756574,0.12522096,92995.0,92994.0,0.03455115]
[1740975756783,0.07979351,92995.0,92994.0,0.11705437]
[1740975757122,0.08079351,92995.0,92994.0,0.13105437]
[1740975758074,0.22596251,92995.0,92994.0,0.13105437]
[1740975758543,0.22596251,92995.0,92994.0,0.12405437]
[1740975758899,0.22596251,92995.0,92994.0,0.02755115]
[1740975760151,0.22596251,92995.0,92994.0,0.03455115]
[1740975760349,0.22496251,92995.0,92994.0,0.02755115]
[1740975760554,0.22513291,92995.0,92994.0,0.02055115]
[1740975760715,0.22613291,92995.0,92994.0,0.02755115]
[1740975760916,0.22613291,92995.0,92994.0,0.03455115]
[1740975761319,0.22613291,92995.0,92994.0,0.02755115]
[1740975761718,0.22613291,92995.0,92994.0,0.03455115]
[1740975762115,0.27383291,92995.0,92994.0,0.03455115]
[1740975762471,0.27195095,92995.0,92994.0,0.03455115]
[1740975762675,0.26695095,92995.0,92994.0,0.03455115]
[1740975762876,0.12178195,92995.0,92994.0,0.03455115]
[1740975763080,0.26883297,92995.0,92994.0,0.03455115]
[1740975763292,0.26695095,92995.0,92994.0,0.03455115]
[1740975763502,0.26595095,92995.0,92994.0,0.02055115]
[1740975763697,0.26695095,92995.0,92994.0,0.03455115]
[1740975764056,0.26595095,92995.0,92994.0,0.02755115]
[1740975764273,0.26695095,92995.0,92994.0,0.02755115]
[1740975764496,0.26695095,92995.0,92994.0,0.03455115]
[1740975766525,0.26595095,92995.0,92994.0,0.02055115]
[1740975766968,0.26695095,92995.0,92994.0,0.03455115]
[1740975767267,0.26595095,92995.0,92994.0,0.02055115]
[1740975767404,0.26695095,92995.0,92994.0,0.02755115]
[1740975767609,0.26695095,92995.0,92994.0,0.03455115]
[1740975769848,0.26595095,92995.0,92994.0,0.02055115]
[1740975770209,0.23599016,92995.0,92994.0,0.02755115]
[1740975770485,0.23599016,92995.0,92994.0,0.03455115]
[1740975770871,0.09082116,92995.0,92994.0,0.03455115]
[1740975771046,0.09270319,92995.0,92994.0,0.03455115]
[1740975772084,0.23787219,92995.0,92994.0,0.03455115]
[1740975773466,0.19017219,92995.0,92994.0,0.03455115]
[1740975773705,0.04500319,92995.0,92994.0,0.03455115]
[1740975773928,0.04312116,92995.0,92994.0,0.03455115]
[1740975775319,0.19017206,92995.0,92994.0,0.03455115]
[1740975775948,0.04500306,92995.0,92994.0,0.03455115]
[1740975776168,0.04312116,92995.0,92994.0,0.03455115]